[Event "Turkish Women-ch Arzum 2022"]
[Site "Ayvalik"]
[Date "2022.03.10"]
[Round "8.26"]
[White "Ozer, Melike Busra"]
[Black "Dal, Nurseda"]
[Result "1/2-1/2"]
[ECO "C45"]
[WhiteElo "1300"]
[BlackElo "1116"]
[Annotator "NA RC"]
[PlyCount "74"]
[EventDate "2022.03.04"]
[EventType "swiss"]
[EventCountry "TUR"]
[SourceTitle "playchess.com"]
[Source "ChessBase"]
[SourceQuality "1"]
[TimeControl "5400+30"]

1. e4 e5 2. Nf3 Nc6 3. d4 exd4 4. Nxd4 Bc5 5. Be3 Qf6 6. c3 Nge7 {[%emt 0:01:30]} 7. Bc4 {[%emt 0:02:00]} Ne5 {[%emt 0:00:30]} 8. Bb3 {[%emt 0:01:30]} Qg6 {[%emt 0:01:30]} 9. O-O {[%emt 0:11:30]} Qxe4 {[%emt 0:02:30]} 10. Re1 {[%emt 0:01:30]} Qg4 {[%emt 0:15:30]} 11. Nb5 {[%emt 0:18:30]} Qxd1 {[%emt 0:03:30]} 12. Nxc7+ {[%emt 0:00:30]} Kd8 {[%emt 0:00:30]} 13. Bxd1 {[%emt 0:00:30]} Bxe3 {[%emt 0:04:30]} 14. Rxe3 {[%emt 0:05:30]} Kxc7 {[%emt 0:01:30]} 15. Rxe5 {[%emt 0:00:30]} Nc6 {[%emt 0:01:30]} 16. Re3 {[%emt 0:02:30]} d5 {[%emt 0:02:30]} 17. Bb3 {[%emt 0:03:30]} Be6 {[%emt 0:03:30]} 18. Na3 {[%emt 0:01:30]} a6 {[%emt 0:01:30]} 19. Nc2 {[%emt 0:01:30]} Na5 {[%emt 0:02:30]} 20. Nd4 {[%emt 0:00:30]} Kd6 {[%emt 0:02:30]} 21. Nxe6 {[%emt 0:04:30]} Nxb3 {[%emt 0:00:30]} 22. axb3 {[%emt 0:00:30]} fxe6 {[%emt 0:00:30]} 23. Rae1 {[%emt 0:00:30]} Rae8 {[%emt 0:00:00]} 24. Kf1 {[%emt 0:08:30]} Rhf8 {[%emt 0:01:00]} 25. Ke2 {[%emt 0:01:30]} b5 {[%emt 0:01:30]} 26. f3 {[%emt 0:00:30]} g5 {[%emt 0:06:30]} 27. Kd3 {[%emt 0:03:30]} e5 {[%emt 0:02:30]} 28. c4 {[%emt 0:04:30]} d4 {[%emt 0:02:30]} 29. c5+ {[%emt 0:02:30]} Kd5 {[%emt 0:00:30]} 30. R3e2 {[%emt 0:01:30]} Rf5 {[%emt 0:02:30]} 31. b4 {[%emt 0:00:30]} Re6 {[%emt 0:01:30]} 32. b3 {[%emt 0:02:30]} h5 {[%emt 0:01:30]} 33. h3 {[%emt 0:02:30]} Kc6 {[%emt 0:05:30]} 34. Ra1 {[%emt 0:02:30]} Kd5 {[%emt 0:00:30]} 35. Re4 {[%emt 0:01:28]} Rf4 {[%emt 0:01:30]} 36. Ra2 {[%emt 0:00:56]} Ref6 {[%emt 0:03:30]} 37. Rae2 {[%emt 0:01:39]} Re6 {[%emt 0:01:30]} 1/2-1/2

[Event "Turkish Women-ch Arzum 2022"]
[Site "Ayvalik"]
[Date "2022.03.10"]
[Round "8.28"]
[White "Kalyoncu, Beren"]
[Black "Bassari, Senem Gul"]
[Result "0-1"]
[ECO "B10"]
[WhiteElo "1228"]
[BlackElo "1197"]
[Annotator "NA RC"]
[PlyCount "90"]
[EventDate "2022.03.04"]
[EventType "swiss"]
[EventCountry "TUR"]
[SourceTitle "playchess.com"]
[Source "ChessBase"]
[SourceQuality "1"]
[TimeControl "5400+30"]

1. e4 {[%emt 0:05:00]} c6 {[%emt 0:01:00]} 2. Nf3 {[%emt 0:00:30]} d5 {[%emt 0:00:30]} 3. d3 {[%emt 0:00:00]} g6 {[%emt 0:01:30]} 4. Be2 {[%emt 0:04:00]} Bg7 {[%emt 0:01:30]} 5. exd5 {[%emt 0:02:30]} cxd5 {[%emt 0:01:30]} 6. d4 {[%emt 0:02:30]} Nc6 {[%emt 0:01:30]} 7. O-O {[%emt 0:04:30]} Nf6 {[%emt 0:01:30]} 8. c3 {[%emt 0:02:30]} O-O {[%emt 0:02:30]} 9. h3 {[%emt 0:03:30]} a6 {[%emt 0:05:30]} 10. a4 {[%emt 0:03:30]} Nd7 {[%emt 0:02:30]} 11. Re1 {[%emt 0:09:30]} Re8 {[%emt 0:10:30]} 12. Be3 {[%emt 0:05:30]} e5 {[%emt 0:04:30]} 13. dxe5 {[%emt 0:00:30]} Ndxe5 {[%emt 0:00:30]} 14. Nxe5 {[%emt 0:01:30]} Nxe5 {[%emt 0:00:30]} 15. Nd2 {[%emt 0:02:30]} Bf5 {[%emt 0:04:30]} 16. Bd4 {[%emt 0:06:30]} Qd7 {[%emt 0:06:30]} 17. Bxe5 {[%emt 0:10:30]} Bxe5 {[%emt 0:02:30]} 18. Nf3 {[%emt 0:01:30]} Bg7 {[%emt 0:00:30]} 19. Nd4 {[%emt 0:00:30]} Bxd4 {[%emt 0:02:30]} 20. Qxd4 {[%emt 0:01:30]} Re4 {[%emt 0:00:30]} 21. Qb6 {[%emt 0:09:30]} Rae8 {[%emt 0:03:30]} 22. Kf1 {[%emt 0:01:30]} Qe7 {[%emt 0:06:30]} 23. g4 {[%emt 0:04:20]} Rxe2 {[%emt 0:01:30]} 24. Rxe2 {[%emt 0:01:42]} Qxe2+ {[%emt 0:00:30]} 25. Kg1 {[%emt 0:00:00]} Be4 {[%emt 0:02:30]} 26. Qe3 {[%emt 0:00:57]} Qxe3 {[%emt 0:01:30]} 27. fxe3 {[%emt 0:00:07]} Bc2 {[%emt 0:00:30]} 28. Kf2 {[%emt 0:00:16]} Re4 {[%emt 0:01:30]} 29. b4 {[%emt 0:01:25]} Rc4 {[%emt 0:00:30]} 30. Ra3 {[%emt 0:00:11]} f5 {[%emt 0:01:30]} 31. g5 {[%emt 0:01:14]} Kf7 {[%emt 0:00:30]} 32. a5 {[%emt 0:00:34]} Ke6 {[%emt 0:01:30]} 33. Ra2 {[%emt 0:00:07]} Rxc3 {[%emt 0:00:30]} 34. Rb2 {[%emt 0:00:14]} Bd3 {[%emt 0:00:30]} 35. Kf3 {[%emt 0:00:40]} Be4+ {[%emt 0:00:30]} 36. Kf4 {[%emt 0:00:20]} Rc2 {[%emt 0:00:00]} 37. Rb3 {[%emt 0:01:59]} Rf2+ {[%emt 0:00:00]} 38. Kg3 {[%emt 0:00:13]} Rf3+ {[%emt 0:00:30]} 39. Kh2 {[%emt 0:00:09]} d4 {[%emt 0:00:30]} 40. b5 {[%emt 0:00:25]} Rxe3 {[%emt 0:01:30]} 41. Rb2 {[%emt 0:02:02]} d3 {[%emt 0:01:30]} 42. bxa6 {[%emt 0:00:10]} Re2+ {[%emt 0:00:30]} 43. Rxe2 {[%emt 0:00:15]} dxe2 {[%emt 0:00:30]} 44. a7 {[%emt 0:00:07]} e1=Q {[%emt 0:00:30]} 45. a8=Q {[%emt 0:00:31]} Qf2# {[%emt 0:00:30]} 0-1

[Event "Turkish Women-ch Arzum 2022"]
[Site "Ayvalik"]
[Date "2022.03.10"]
[Round "8.29"]
[White "Gonultas, Bakriya Anastasiya"]
[Black "Topal, Berfin"]
[Result "1/2-1/2"]
[ECO "B01"]
[WhiteElo "1232"]
[BlackElo "1322"]
[Annotator "NA RC"]
[PlyCount "122"]
[EventDate "2022.03.04"]
[EventType "swiss"]
[EventCountry "TUR"]
[SourceTitle "playchess.com"]
[Source "ChessBase"]
[SourceQuality "1"]
[TimeControl "5400+30"]

1. e4 d5 2. exd5 Qxd5 3. Nc3 Qd8 4. Nf3 Nf6 5. Bc4 Bf5 6. O-O e6 7. d4 c6 8. Re1 {[%emt 0:01:30]} Bb4 {[%emt 0:02:30]} 9. a3 {[%emt 0:00:30]} Bxc3 {[%emt 0:00:30]} 10. bxc3 {[%emt 0:00:00]} Nbd7 {[%emt 0:00:00]} 11. a4 {[%emt 0:01:00]} O-O {[%emt 0:00:00]} 12. h3 {[%emt 0:00:30]} Nb6 {[%emt 0:00:00]} 13. Bd3 {[%emt 0:00:30]} Bxd3 {[%emt 0:00:00]} 14. cxd3 {[%emt 0:00:30]} Qc7 {[%emt 0:00:30]} 15. c4 {[%emt 0:00:30]} Rad8 {[%emt 0:00:30]} 16. Bb2 {[%emt 0:00:00]} Rfe8 {[%emt 0:02:30]} 17. Re5 {[%emt 0:01:00]} h6 {[%emt 0:02:30]} 18. Nh2 {[%emt 0:01:30]} Nfd7 {[%emt 0:00:30]} 19. Re3 {[%emt 0:00:30]} c5 {[%emt 0:12:30]} 20. Rg3 {[%emt 0:00:30]} cxd4 {[%emt 0:04:30]} 21. Qg4 {[%emt 0:00:30]} g6 {[%emt 0:01:30]} 22. Bxd4 {[%emt 0:00:00]} e5 {[%emt 0:01:30]} 23. Be3 {[%emt 0:00:00]} Kg7 {[%emt 0:06:30]} 24. h4 {[%emt 0:08:30]} Nf6 {[%emt 0:02:30]} 25. Qf3 {[%emt 0:04:30]} Qc6 {[%emt 0:03:30]} 26. Qe2 {[%emt 0:02:30]} e4 {[%emt 0:06:30]} 27. d4 {[%emt 0:16:30]} Qxc4 {[%emt 0:01:30]} 28. Qd2 {[%emt 0:00:00]} Rh8 {[%emt 0:07:30]} 29. Ng4 {[%emt 0:02:00]} Nxg4 {[%emt 0:00:30]} 30. Rxg4 {[%emt 0:00:30]} Nd5 {[%emt 0:00:30]} 31. Rxe4 {[%emt 0:00:30]} Nxe3 {[%emt 0:01:30]} 32. fxe3 {[%emt 0:00:30]} Rhe8 {[%emt 0:00:30]} 33. Rf4 {[%emt 0:00:30]} Re7 {[%emt 0:01:30]} 34. Qb2 {[%emt 0:01:30]} Qd5 {[%emt 0:01:30]} 35. Raf1 {[%emt 0:01:30]} Rdd7 {[%emt 0:01:30]} 36. Qc3 {[%emt 0:01:30]} Rc7 {[%emt 0:00:30]} 37. Qd3 {[%emt 0:01:30]} Qa2 {[%emt 0:03:30]} 38. d5 {[%emt 0:00:30]} Re5 {[%emt 0:06:30]} 39. d6 {[%emt 0:05:30]} Rd7 {[%emt 0:15:13]} 40. Qc3 {[%emt 0:02:30]} Qe6 {[%emt 0:00:55]} 41. Rf6 {[%emt 0:05:30]} Qe8 {[%emt 0:06:56]} 42. Qd4 {[%emt 0:01:30]} b6 {[%emt 0:01:22]} 43. Rxf7+ {[%emt 0:03:30]} Rxf7 {[%emt 0:01:01]} 44. Rxf7+ {[%emt 0:00:30]} Kxf7 {[%emt 0:00:30]} 45. d7 {[%emt 0:00:00]} Qd8 {[%emt 0:00:00]} 46. Qxe5 {[%emt 0:01:00]} Qxd7 {[%emt 0:00:00]} 47. Qf4+ {[%emt 0:00:30]} Kg7 {[%emt 0:00:17]} 48. a5 {[%emt 0:03:30]} bxa5 {[%emt 0:01:18]} 49. Qe5+ {[%emt 0:00:00]} Kf7 {[%emt 0:01:03]} 50. Qxa5 {[%emt 0:01:00]} Qe7 {[%emt 0:00:10]} 51. Qa2+ {[%emt 0:00:00]} Kg7 {[%emt 0:00:38]} 52. Qb2+ {[%emt 0:00:00]} Kh7 {[%emt 0:00:45]} 53. Qd4 {[%emt 0:01:30]} a5 {[%emt 0:00:51]} 54. g3 {[%emt 0:06:30]} Qc7 {[%emt 0:03:17]} 55. Kh2 {[%emt 0:01:30]} Qc2+ {[%emt 0:01:27]} 56. Kh3 {[%emt 0:00:30]} Qf5+ {[%emt 0:02:05]} 57. Kh2 {[%emt 0:00:30]} Qf2+ {[%emt 0:00:11]} 58. Kh3 {[%emt 0:00:30]} Qf5+ {[%emt 0:00:55]} 59. Kh2 {[%emt 0:00:30]} Qf2+ {[%emt 0:00:36]} 60. Kh3 {[%emt 0:00:00]} Qf5+ {[%emt 0:00:06]} 61. Kh2 {[%emt 0:00:00]} Qf2+ {[%emt 0:00:11]} 1/2-1/2

[Event "Turkish Women-ch Arzum 2022"]
[Site "Ayvalik"]
[Date "2022.03.10"]
[Round "8.31"]
[White "Bodur, Ilke Lal"]
[Black "Olmez, Sude"]
[Result "0-1"]
[ECO "B22"]
[WhiteElo "1151"]
[BlackElo "1170"]
[Annotator "NA RC"]
[PlyCount "126"]
[EventDate "2022.03.04"]
[EventType "swiss"]
[EventCountry "TUR"]
[SourceTitle "playchess.com"]
[Source "ChessBase"]
[SourceQuality "1"]
[TimeControl "5400+30"]

1. e4 c5 2. c3 e6 3. d4 d5 4. exd5 Qxd5 5. Nf3 {[%emt 0:02:00]} Nc6 {[%emt 0:02:00]} 6. Be3 {[%emt 0:00:30]} cxd4 {[%emt 0:00:30]} 7. Nxd4 {[%emt 0:01:30]} a6 {[%emt 0:06:30]} 8. Nxc6 {[%emt 0:05:30]} Qxd1+ {[%emt 0:00:30]} 9. Kxd1 {[%emt 0:00:00]} bxc6 {[%emt 0:00:00]} 10. Nd2 {[%emt 0:01:00]} Nf6 {[%emt 0:00:00]} 11. Be2 {[%emt 0:01:30]} Be7 {[%emt 0:00:30]} 12. Bf3 {[%emt 0:00:30]} Bd7 {[%emt 0:00:30]} 13. Re1 {[%emt 0:00:30]} O-O {[%emt 0:00:30]} 14. Ke2 {[%emt 0:06:30]} Rab8 {[%emt 0:02:30]} 15. b3 {[%emt 0:11:30]} Nd5 {[%emt 0:02:30]} 16. Bxd5 {[%emt 0:01:30]} cxd5 {[%emt 0:00:00]} 17. Kf1 {[%emt 0:00:30]} Rfc8 {[%emt 0:02:00]} 18. Rec1 {[%emt 0:14:30]} Rb7 {[%emt 0:08:30]} 19. c4 {[%emt 0:24:30]} Bf6 {[%emt 0:14:30]} 20. Rab1 {[%emt 0:00:30]} Rbc7 {[%emt 0:15:30]} 21. Rd1 {[%emt 0:08:30]} Bc6 {[%emt 0:06:30]} 22. cxd5 {[%emt 0:03:51]} Bxd5 {[%emt 0:00:30]} 23. Nf3 {[%emt 0:02:17]} h6 {[%emt 0:00:30]} 24. Rbc1 {[%emt 0:03:31]} Rc2 {[%emt 0:04:30]} 25. Rxc2 {[%emt 0:00:50]} Rxc2 {[%emt 0:00:30]} 26. Rd2 {[%emt 0:00:00]} Rc8 {[%emt 0:01:30]} 27. Bd4 {[%emt 0:02:27]} Be7 {[%emt 0:03:30]} 28. Ne1 {[%emt 0:02:56]} Be4 {[%emt 0:05:30]} 29. f3 {[%emt 0:01:09]} Bg6 {[%emt 0:00:30]} 30. Be5 {[%emt 0:00:27]} Bb4 {[%emt 0:01:30]} 31. Rd1 {[%emt 0:02:06]} f6 {[%emt 0:03:30]} 32. Bd6 {[%emt 0:01:31]} Rd8 {[%emt 0:01:30]} 33. Bxb4 {[%emt 0:01:41]} Rxd1 {[%emt 0:00:30]} 34. Ke2 {[%emt 0:00:00]} Rd7 {[%emt 0:00:30]} 35. f4 {[%emt 0:00:46]} Bb1 {[%emt 0:00:30]} 36. a3 {[%emt 0:00:29]} Kf7 {[%emt 0:00:00]} 37. g3 {[%emt 0:00:34]} Ba2 {[%emt 0:01:35]} 38. Nd3 {[%emt 0:00:17]} Bxb3 {[%emt 0:00:15]} 39. Nc5 {[%emt 0:00:30]} Bc4+ {[%emt 0:00:10]} 40. Ke3 {[%emt 0:00:00]} Rd1 {[%emt 0:00:55]} 41. h3 {[%emt 0:00:21]} Rh1 {[%emt 0:01:11]} 42. h4 {[%emt 0:00:05]} h5 {[%emt 0:02:00]} 43. Nb7 {[%emt 0:01:01]} Bd5 {[%emt 0:01:38]} 44. Nd6+ {[%emt 0:00:25]} Kg6 {[%emt 0:01:08]} 45. f5+ {[%emt 0:00:31]} exf5 {[%emt 0:01:18]} 46. Kf4 {[%emt 0:01:19]} Rf1+ {[%emt 0:00:20]} 47. Ke3 {[%emt 0:00:00]} Rf3+ {[%emt 0:01:01]} 48. Kd4 {[%emt 0:00:40]} Be4 {[%emt 0:00:38]} 49. Nxe4 {[%emt 0:00:30]} fxe4 {[%emt 0:00:30]} 50. Kxe4 {[%emt 0:00:00]} Rxg3 {[%emt 0:00:00]} 51. Be1 {[%emt 0:00:48]} Rxa3 {[%emt 0:00:01]} 52. Kf4 {[%emt 0:00:00]} a5 {[%emt 0:00:25]} 53. Bxa5 {[%emt 0:00:53]} Rxa5 {[%emt 0:00:30]} 54. Kg3 {[%emt 0:00:00]} Ra4 {[%emt 0:00:00]} 55. Kh3 {[%emt 0:00:18]} Kf5 {[%emt 0:00:13]} 56. Kg3 {[%emt 0:00:00]} g5 {[%emt 0:00:14]} 57. hxg5 {[%emt 0:00:18]} Kxg5 {[%emt 0:00:30]} 58. Kh3 {[%emt 0:00:00]} Ra3+ {[%emt 0:00:00]} 59. Kg2 {[%emt 0:00:12]} Kf4 {[%emt 0:00:20]} 60. Kh2 {[%emt 0:00:00]} Kg4 {[%emt 0:00:00]} 61. Kg2 {[%emt 0:00:10]} Ra2+ {[%emt 0:00:20]} 62. Kh1 {[%emt 0:00:25]} Kg3 {[%emt 0:00:00]} 63. Kg1 {[%emt 0:00:30]} Ra1# {[%emt 0:00:06]} 0-1

[Event "Turkish Women-ch Arzum 2022"]
[Site "Ayvalik"]
[Date "2022.03.10"]
[Round "8.32"]
[White "Yazici, Zumral"]
[Black "Guleryuz, Zeynep"]
[Result "1-0"]
[ECO "B30"]
[WhiteElo "1229"]
[BlackElo "1186"]
[Annotator "NA RC"]
[PlyCount "131"]
[EventDate "2022.03.04"]
[EventType "swiss"]
[EventCountry "TUR"]
[SourceTitle "playchess.com"]
[Source "ChessBase"]
[SourceQuality "1"]
[TimeControl "5400+30"]

1. e4 c5 2. Nf3 Nc6 3. Bb5 {[%emt 0:01:00]} a6 {[%emt 0:04:00]} 4. Bxc6 {[%emt 0:00:00]} dxc6 {[%emt 0:01:30]} 5. O-O {[%emt 0:02:00]} Bg4 {[%emt 0:02:30]} 6. h3 {[%emt 0:02:30]} Bxf3 {[%emt 0:00:30]} 7. Qxf3 {[%emt 0:00:30]} e5 {[%emt 0:00:00]} 8. d3 {[%emt 0:07:30]} h6 {[%emt 0:00:00]} 9. Nc3 {[%emt 0:04:30]} Nf6 {[%emt 0:06:30]} 10. Be3 {[%emt 0:00:30]} b5 {[%emt 0:00:30]} 11. Rfe1 {[%emt 0:04:30]} g5 {[%emt 0:14:30]} 12. Ne2 {[%emt 0:04:30]} Nd7 {[%emt 0:15:30]} 13. Ng3 {[%emt 0:03:30]} Qf6 {[%emt 0:01:30]} 14. Nf5 {[%emt 0:01:30]} O-O-O {[%emt 0:01:30]} 15. c3 {[%emt 0:04:30]} h5 {[%emt 0:02:30]} 16. g4 {[%emt 0:09:30]} hxg4 {[%emt 0:01:30]} 17. Qxg4 {[%emt 0:00:30]} Qg6 {[%emt 0:04:30]} 18. Kh2 {[%emt 0:12:30]} Qh5 {[%emt 0:03:30]} 19. Qxh5 {[%emt 0:01:30]} Rxh5 {[%emt 0:00:30]} 20. Ng3 {[%emt 0:00:30]} Rh7 {[%emt 0:01:30]} 21. Bxg5 {[%emt 0:00:30]} f6 {[%emt 0:00:30]} 22. Be3 {[%emt 0:01:30]} Bh6 {[%emt 0:03:30]} 23. Kg2 {[%emt 0:03:30]} Rg8 {[%emt 0:00:30]} 24. Bxh6 {[%emt 0:06:30]} Rxh6 {[%emt 0:00:30]} 25. Re3 {[%emt 0:02:30]} Nf8 {[%emt 0:00:30]} 26. Kh2 {[%emt 0:03:30]} Kd7 {[%emt 0:01:30]} 27. Nf5 {[%emt 0:01:30]} Rh7 {[%emt 0:04:30]} 28. Rg3 {[%emt 0:01:30]} Rgh8 {[%emt 0:02:30]} 29. Rg7+ {[%emt 0:05:40]} Rxg7 {[%emt 0:00:30]} 30. Nxg7 {[%emt 0:00:02]} Ne6 {[%emt 0:01:30]} 31. Nxe6 {[%emt 0:00:10]} Kxe6 {[%emt 0:00:30]} 32. Rg1 {[%emt 0:01:35]} Kf7 {[%emt 0:00:30]} 33. a4 {[%emt 0:02:10]} Rd8 {[%emt 0:01:30]} 34. axb5 {[%emt 0:00:57]} axb5 {[%emt 0:04:30]} 35. Rd1 {[%emt 0:04:07]} Ra8 {[%emt 0:01:30]} 36. c4 {[%emt 0:00:57]} b4 {[%emt 0:00:30]} 37. h4 {[%emt 0:01:07]} Ra2 {[%emt 0:00:30]} 38. Rb1 {[%emt 0:00:59]} Ra8 {[%emt 0:00:30]} 39. Kg3 {[%emt 0:00:00]} Rg8+ {[%emt 0:01:32]} 40. Kf3 {[%emt 0:01:17]} Ra8 {[%emt 0:01:38]} 41. h5 {[%emt 0:01:24]} b3 {[%emt 0:00:58]} 42. Ke3 {[%emt 0:03:53]} Rg8 {[%emt 0:00:19]} 43. Ra1 {[%emt 0:00:43]} Kg7 {[%emt 0:00:49]} 44. Rg1+ {[%emt 0:01:21]} Kh7 {[%emt 0:00:07]} 45. Rxg8 {[%emt 0:00:24]} Kxg8 {[%emt 0:00:02]} 46. f4 {[%emt 0:01:03]} Kh7 {[%emt 0:01:01]} 47. fxe5 {[%emt 0:00:30]} fxe5 {[%emt 0:00:00]} 48. Kf3 {[%emt 0:00:00]} Kg7 {[%emt 0:00:11]} 49. Kg4 {[%emt 0:00:52]} Kf6 {[%emt 0:00:30]} 50. Kh4 {[%emt 0:00:00]} Kf7 {[%emt 0:00:51]} 51. Kg5 {[%emt 0:00:12]} Kg7 {[%emt 0:00:00]} 52. Kf5 {[%emt 0:00:09]} Kh6 {[%emt 0:00:23]} 53. Kxe5 {[%emt 0:00:00]} Kxh5 {[%emt 0:00:09]} 54. Kf6 {[%emt 0:00:20]} Kg4 {[%emt 0:00:30]} 55. e5 {[%emt 0:00:00]} Kf3 {[%emt 0:00:30]} 56. e6 {[%emt 0:00:10]} Ke2 {[%emt 0:00:00]} 57. e7 {[%emt 0:00:00]} Kxd3 {[%emt 0:01:38]} 58. e8=Q {[%emt 0:00:00]} Kxc4 {[%emt 0:01:02]} 59. Qxc6 {[%emt 0:00:07]} Kd4 {[%emt 0:00:26]} 60. Qb6 {[%emt 0:00:29]} Kc4 {[%emt 0:01:55]} 61. Ke5 {[%emt 0:00:49]} Kd3 {[%emt 0:00:50]} 62. Qxc5 {[%emt 0:00:08]} Kd2 {[%emt 0:00:04]} 63. Ke4 {[%emt 0:00:57]} Ke2 {[%emt 0:00:34]} 64. Qc3 {[%emt 0:00:55]} Kf2 {[%emt 0:01:01]} 65. Qe3+ {[%emt 0:00:09]} Kf1 {[%emt 0:00:23]} 66. Qd2 {[%emt 0:00:14]} 1-0

[Event "Turkish Women-ch Arzum 2022"]
[Site "Ayvalik"]
[Date "2022.03.10"]
[Round "8.33"]
[White "Susin, Derya Defne"]
[Black "Mullakutukcu, Ela"]
[Result "1/2-1/2"]
[ECO "A43"]
[WhiteElo "1285"]
[BlackElo "1154"]
[Annotator "NA RC"]
[PlyCount "121"]
[EventDate "2022.03.04"]
[EventType "swiss"]
[EventCountry "TUR"]
[SourceTitle "playchess.com"]
[Source "ChessBase"]
[SourceQuality "1"]
[TimeControl "5400+30"]

1. d4 c5 2. d5 Nf6 3. Nc3 g6 4. e4 d6 {[%emt 0:01:30]} 5. Be2 {[%emt 0:02:00]} Bg7 {[%emt 0:01:30]} 6. Nf3 {[%emt 0:00:30]} O-O {[%emt 0:00:30]} 7. O-O {[%emt 0:00:30]} Bg4 {[%emt 0:04:30]} 8. Nd2 {[%emt 0:02:30]} Bxe2 {[%emt 0:01:30]} 9. Qxe2 {[%emt 0:01:30]} Nbd7 {[%emt 0:00:30]} 10. Nc4 {[%emt 0:07:30]} a6 {[%emt 0:07:30]} 11. a4 {[%emt 0:02:30]} Nb6 {[%emt 0:05:30]} 12. Nxb6 {[%emt 0:06:30]} Qxb6 {[%emt 0:00:00]} 13. a5 {[%emt 0:00:30]} Qc7 {[%emt 0:02:00]} 14. Bd2 {[%emt 0:02:30]} e6 {[%emt 0:08:30]} 15. Qf3 {[%emt 0:14:30]} exd5 {[%emt 0:01:30]} 16. exd5 {[%emt 0:00:30]} Nd7 {[%emt 0:00:30]} 17. Bf4 {[%emt 0:02:30]} Ne5 {[%emt 0:05:30]} 18. Bxe5 {[%emt 0:03:30]} Bxe5 {[%emt 0:00:00]} 19. Rfe1 {[%emt 0:06:30]} Rfe8 {[%emt 0:04:00]} 20. g3 {[%emt 0:07:30]} Re7 {[%emt 0:01:30]} 21. Ra2 {[%emt 0:03:30]} Bxc3 {[%emt 0:04:30]} 22. Rxe7 {[%emt 0:03:30]} Qxe7 {[%emt 0:00:30]} 23. Qxc3 {[%emt 0:00:30]} Re8 {[%emt 0:02:30]} 24. Ra1 {[%emt 0:04:30]} Qe5 {[%emt 0:08:30]} 25. Qb3 {[%emt 0:09:30]} Re7 {[%emt 0:02:30]} 26. Ra4 {[%emt 0:03:01]} Qe1+ {[%emt 0:08:30]} 27. Kg2 {[%emt 0:00:02]} Qd1 {[%emt 0:02:30]} 28. Rf4 {[%emt 0:13:07]} Re1 {[%emt 0:04:30]} 29. Qf3 {[%emt 0:01:51]} Rg1+ {[%emt 0:02:30]} 30. Kh3 {[%emt 0:00:06]} Qxf3 {[%emt 0:00:30]} 31. Rxf3 {[%emt 0:00:02]} Ra1 {[%emt 0:02:30]} 32. Rf6 {[%emt 0:01:48]} Rxa5 {[%emt 0:00:30]} 33. Rxd6 {[%emt 0:00:00]} Kf8 {[%emt 0:00:00]} 34. Rd7 {[%emt 0:03:41]} Rb5 {[%emt 0:01:00]} 35. b3 {[%emt 0:00:50]} Ke8 {[%emt 0:00:46]} 36. Rc7 {[%emt 0:00:09]} Rb4 {[%emt 0:05:55]} 37. Rxc5 {[%emt 0:00:47]} Kd7 {[%emt 0:00:11]} 38. Rc3 {[%emt 0:00:31]} Rd4 {[%emt 0:00:55]} 39. Rf3 {[%emt 0:00:31]} f5 {[%emt 0:00:49]} 40. c4 {[%emt 0:00:28]} b5 {[%emt 0:00:39]} 41. Rc3 {[%emt 0:00:34]} bxc4 {[%emt 0:02:18]} 42. bxc4 {[%emt 0:00:54]} a5 {[%emt 0:00:20]} 43. Ra3 {[%emt 0:00:00]} Rxc4 {[%emt 0:01:48]} 44. Rxa5 {[%emt 0:00:00]} Kd6 {[%emt 0:00:29]} 45. Ra7 {[%emt 0:00:08]} Rc7 {[%emt 0:00:00]} 46. Rxc7 {[%emt 0:00:55]} Kxc7 {[%emt 0:00:29]} 47. Kh4 {[%emt 0:00:00]} h6 {[%emt 0:00:00]} 48. f4 {[%emt 0:01:09]} Kd6 {[%emt 0:00:28]} 49. g4 {[%emt 0:00:12]} Kxd5 {[%emt 0:01:54]} 50. gxf5 {[%emt 0:00:56]} gxf5 {[%emt 0:00:37]} 51. Kh5 {[%emt 0:00:30]} Ke4 {[%emt 0:00:00]} 52. Kxh6 {[%emt 0:00:14]} Kxf4 {[%emt 0:00:17]} 53. h4 {[%emt 0:00:00]} Ke3 {[%emt 0:01:03]} 54. Kg5 {[%emt 0:00:32]} f4 {[%emt 0:00:30]} 55. h5 {[%emt 0:00:00]} f3 {[%emt 0:00:10]} 56. h6 {[%emt 0:00:00]} f2 {[%emt 0:00:29]} 57. h7 {[%emt 0:00:00]} f1=Q {[%emt 0:00:00]} 58. h8=Q {[%emt 0:00:07]} Qg2+ {[%emt 0:00:29]} 59. Kh6 {[%emt 0:00:44]} Qh3+ {[%emt 0:00:40]} 60. Kg7 {[%emt 0:00:02]} Qxh8+ {[%emt 0:00:29]} 61. Kxh8 {[%emt 0:00:30]} 1/2-1/2